[Event "Titled Tuesday Blitz February 21 Early 2023"]
[White "Better_Chess_Faster"]
[Black "I_KID_you_not"]
[WhiteElo "1968"]
[BlackElo "2364"]
[Result "0-1"]
[Round "03"]
[TimeControl "180+2"]
[Date "2023.02.21"]
[WhiteClock "0:02:33"]
[BlackClock "0:02:43"]

1. c4 {[%clk 0:03:00]}  c5 {[%clk 0:02:59]} 2. g3 {[%clk 0:03:00]}  g6 {[%clk 0:02:59]} 3. Bg2 {[%clk 0:03:00]}  Bg7 {[%clk 0:02:59]} 4. Nc3 {[%clk 0:03:00]}  Nc6 {[%clk 0:03:00]} 5. Nf3 {[%clk 0:02:59]}  d6 {[%clk 0:02:58]} 6. O-O {[%clk 0:02:58]}  e5 {[%clk 0:02:58]} 7. a3 {[%clk 0:02:54]}  a5 {[%clk 0:02:56]} 8. d3 {[%clk 0:02:54]}  Nge7 {[%clk 0:02:54]} 9. Ne1 {[%clk 0:02:54]}  Be6 {[%clk 0:02:54]} 10. Nc2 {[%clk 0:02:54]}  d5 {[%clk 0:02:55]} 11. cxd5 {[%clk 0:02:52]}  Nxd5 {[%clk 0:02:55]} 12. Ne3 {[%clk 0:02:49]}  Nb6 {[%clk 0:02:55]} 13. Na4 {[%clk 0:02:45]}  Nxa4 {[%clk 0:02:51]} 14. Qxa4 {[%clk 0:02:44]}  O-O {[%clk 0:02:52]} 15. Bd2 {[%clk 0:02:38]}  Nd4 {[%clk 0:02:45]} 16. Rfe1 {[%clk 0:02:33]}  Bb3 {[%clk 0:02:43]} 0-1


[Site "https://www.chess.com"]

[Event "Titled Tuesday Blitz February 21 Early 2023"]
[White "Lorenzo De La Riva, Lazaro"]
[Black "SulfatoFerroso"]
[WhiteFideId "2268809"]
[WhiteElo "2404"]
[BlackElo "1776"]
[Result "1-0"]
[Round "03"]
[TimeControl "180+2"]
[Date "2023.02.21"]
[WhiteClock "0:00:41"]
[BlackClock "0:00:01"]

1. d4 {[%clk 0:02:55]}  d5 {[%clk 0:02:58]} 2. Nc3 {[%clk 0:02:54]}  Nf6 {[%clk 0:02:54]} 3. Bf4 {[%clk 0:02:54]}  c5 {[%clk 0:02:49]} 4. e3 {[%clk 0:02:41]}  Bf5 {[%clk 0:02:41]} 5. dxc5 {[%clk 0:02:38]}  Nc6 {[%clk 0:02:38]} 6. Bb5 {[%clk 0:02:37]}  e6 {[%clk 0:02:25]} 7. b4 {[%clk 0:02:29]}  Be7 {[%clk 0:02:12]} 8. Nf3 {[%clk 0:02:25]}  O-O {[%clk 0:02:11]} 9. Bxc6 {[%clk 0:02:24]}  bxc6 {[%clk 0:02:10]} 10. Nd4 {[%clk 0:02:24]}  a5 {[%clk 0:01:46]} 11. Nxc6 {[%clk 0:02:21]}  Qd7 {[%clk 0:01:45]} 12. Nxe7+ {[%clk 0:02:19]}  Qxe7 {[%clk 0:01:44]} 13. Bd6 {[%clk 0:02:19]}  Qd7 {[%clk 0:01:42]} 14. a3 {[%clk 0:02:15]}  Rfc8 {[%clk 0:01:28]} 15. O-O {[%clk 0:02:07]}  Ra6 {[%clk 0:01:10]} 16. Qd2 {[%clk 0:01:40]}  axb4 {[%clk 0:00:52]} 17. axb4 {[%clk 0:01:39]}  Rxd6 {[%clk 0:00:53]} 18. cxd6 {[%clk 0:01:38]}  Qxd6 {[%clk 0:00:54]} 19. Nb5 {[%clk 0:01:35]}  Qb8 {[%clk 0:00:35]} 20. Nd4 {[%clk 0:01:33]}  Ng4 {[%clk 0:00:26]} 21. f4 {[%clk 0:01:19]}  Be4 {[%clk 0:00:16]} 22. b5 {[%clk 0:01:12]}  h5 {[%clk 0:00:08]} 23. Rfb1 {[%clk 0:01:06]}  Qd6 {[%clk 0:00:07]} 24. b6 {[%clk 0:01:05]}  Qe7 {[%clk 0:00:07]} 25. b7 {[%clk 0:01:04]}  Rb8 {[%clk 0:00:06]} 26. h3 {[%clk 0:00:59]}  Qh4 {[%clk 0:00:04]} 27. Ra8 {[%clk 0:00:48]}  Qg3 {[%clk 0:00:01]} 28. Rxb8+ {[%clk 0:00:46]}  Kh7 {[%clk 0:00:01]} 29. Rh8+ {[%clk 0:00:45]}  Kxh8 {[%clk 0:00:01]} 30. b8=Q+ {[%clk 0:00:45]}  Kh7 {[%clk 0:00:01]} 31. f5 {[%clk 0:00:42]}  Qh2+ {[%clk 0:00:01]} 32. Qxh2 {[%clk 0:00:41]} 1-0


[Site "https://www.chess.com"]

[Event "Titled Tuesday Blitz February 21 Early 2023"]
[White "Bernadskiy, Vitaliy"]
[Black "Andreikin, Dmitry"]
[WhiteFideId "14100371"]
[BlackFideId "4158814"]
[WhiteElo "2592"]
[BlackElo "2729"]
[Result "0-1"]
[Round "04"]
[TimeControl "180+2"]
[Date "2023.02.21"]
[WhiteClock "0:00:03"]
[BlackClock "0:00:13"]

1. e4 {[%clk 0:03:00]}  c5 {[%clk 0:02:55]} 2. Nf3 {[%clk 0:03:00]}  e6 {[%clk 0:02:54]} 3. Nc3 {[%clk 0:02:59]}  a6 {[%clk 0:02:48]} 4. g3 {[%clk 0:02:58]}  Nc6 {[%clk 0:02:44]} 5. Bg2 {[%clk 0:02:57]}  d6 {[%clk 0:02:45]} 6. d4 {[%clk 0:02:55]}  cxd4 {[%clk 0:02:44]} 7. Nxd4 {[%clk 0:02:56]}  Bd7 {[%clk 0:02:44]} 8. Nxc6 {[%clk 0:02:56]}  Bxc6 {[%clk 0:02:44]} 9. O-O {[%clk 0:02:56]}  Nf6 {[%clk 0:02:44]} 10. Re1 {[%clk 0:02:48]}  Be7 {[%clk 0:02:44]} 11. e5 {[%clk 0:02:45]}  dxe5 {[%clk 0:02:43]} 12. Bxc6+ {[%clk 0:02:44]}  bxc6 {[%clk 0:02:44]} 13. Qxd8+ {[%clk 0:02:13]}  Rxd8 {[%clk 0:02:43]} 14. Rxe5 {[%clk 0:02:14]}  Nd5 {[%clk 0:02:38]} 15. Nxd5 {[%clk 0:01:08]}  cxd5 {[%clk 0:02:37]} 16. c3 {[%clk 0:01:04]}  Rb8 {[%clk 0:02:22]} 17. Re2 {[%clk 0:01:01]}  Kd7 {[%clk 0:02:18]} 18. Bf4 {[%clk 0:01:01]}  Rb7 {[%clk 0:02:17]} 19. Rd1 {[%clk 0:01:01]}  Rc8 {[%clk 0:02:16]} 20. h4 {[%clk 0:00:59]}  h5 {[%clk 0:02:10]} 21. Kg2 {[%clk 0:00:58]}  g6 {[%clk 0:02:10]} 22. Be5 {[%clk 0:00:57]}  a5 {[%clk 0:02:09]} 23. b3 {[%clk 0:00:52]}  a4 {[%clk 0:01:58]} 24. c4 {[%clk 0:00:51]}  axb3 {[%clk 0:01:49]} 25. axb3 {[%clk 0:00:52]}  Rc5 {[%clk 0:01:19]} 26. Bd4 {[%clk 0:00:50]}  Ra5 {[%clk 0:01:19]} 27. Bc3 {[%clk 0:00:42]}  Bb4 {[%clk 0:01:17]} 28. Bxb4 {[%clk 0:00:40]}  Rxb4 {[%clk 0:01:18]} 29. Re5 {[%clk 0:00:33]}  Kd6 {[%clk 0:01:01]} 30. Re3 {[%clk 0:00:26]}  Ra3 {[%clk 0:00:50]} 31. Rdd3 {[%clk 0:00:18]}  Ra5 {[%clk 0:00:43]} 32. Kf3 {[%clk 0:00:18]}  Rc5 {[%clk 0:00:39]} 33. Ke2 {[%clk 0:00:17]}  Ra5 {[%clk 0:00:35]} 34. Kd2 {[%clk 0:00:16]}  Rb8 {[%clk 0:00:34]} 35. Ke2 {[%clk 0:00:16]}  Ra2+ {[%clk 0:00:33]} 36. Kf3 {[%clk 0:00:16]}  Rb2 {[%clk 0:00:33]} 37. cxd5 {[%clk 0:00:15]}  exd5 {[%clk 0:00:33]} 38. Kg2 {[%clk 0:00:09]}  Rb4 {[%clk 0:00:31]} 39. Rf3 {[%clk 0:00:09]}  f5 {[%clk 0:00:30]} 40. Rfe3 {[%clk 0:00:09]}  Re4 {[%clk 0:00:30]} 41. Rf3 {[%clk 0:00:07]}  d4 {[%clk 0:00:26]} 42. Rd1 {[%clk 0:00:05]}  Kd5 {[%clk 0:00:25]} 43. Rfd3 {[%clk 0:00:05]}  Ke5 {[%clk 0:00:20]} 44. Kf3 {[%clk 0:00:05]}  Ree2 {[%clk 0:00:18]} 45. Rxd4 {[%clk 0:00:02]}  Rxf2+ {[%clk 0:00:17]} 46. Ke3 {[%clk 0:00:03]}  Rfe2+ {[%clk 0:00:14]} 47. Kf3 {[%clk 0:00:03]}  Rf2+ {[%clk 0:00:12]} 48. Ke3 {[%clk 0:00:03]}  Rbe2+ {[%clk 0:00:11]} 49. Kd3 {[%clk 0:00:03]}  Re4 {[%clk 0:00:11]} 50. Rxe4+ {[%clk 0:00:03]}  fxe4+ {[%clk 0:00:11]} 51. Kc4 {[%clk 0:00:03]}  Rc2+ {[%clk 0:00:11]} 52. Kb4 {[%clk 0:00:03]}  e3 {[%clk 0:00:12]} 53. Rd8 {[%clk 0:00:02]}  e2 {[%clk 0:00:12]} 54. Re8+ {[%clk 0:00:03]}  Kd4 {[%clk 0:00:12]} 55. Ka5 {[%clk 0:00:03]}  Kd3 {[%clk 0:00:12]} 56. b4 {[%clk 0:00:03]}  Rc1 {[%clk 0:00:12]} 57. b5 {[%clk 0:00:03]}  e1=Q+ {[%clk 0:00:13]} 0-1


[Site "https://www.chess.com"]

[Event "Titled Tuesday Blitz February 21 Early 2023"]
[White "Fedoseev, Vladimir"]
[Black "Boros, Denes"]
[WhiteFideId "24130737"]
[BlackFideId "722340"]
[WhiteElo "2680"]
[BlackElo "2406"]
[Result "1-0"]
[Round "04"]
[TimeControl "180+2"]
[Date "2023.02.21"]
[WhiteClock "0:00:19"]
[BlackClock "0:00:02"]

1. e4 {[%clk 0:02:38]}  e5 {[%clk 0:02:58]} 2. Nf3 {[%clk 0:02:38]}  Nc6 {[%clk 0:02:57]} 3. Bb5 {[%clk 0:02:38]}  a6 {[%clk 0:02:54]} 4. Ba4 {[%clk 0:02:38]}  Nge7 {[%clk 0:02:51]} 5. O-O {[%clk 0:02:33]}  Ng6 {[%clk 0:02:43]} 6. d4 {[%clk 0:02:32]}  exd4 {[%clk 0:02:43]} 7. Nxd4 {[%clk 0:02:33]}  Bc5 {[%clk 0:02:42]} 8. Nf5 {[%clk 0:02:21]}  O-O {[%clk 0:02:42]} 9. Be3 {[%clk 0:02:21]}  Bxe3 {[%clk 0:02:40]} 10. Nxe3 {[%clk 0:02:21]}  b5 {[%clk 0:02:31]} 11. Bb3 {[%clk 0:02:19]}  Na5 {[%clk 0:02:30]} 12. Nc3 {[%clk 0:02:15]}  Bb7 {[%clk 0:02:25]} 13. Qd4 {[%clk 0:02:03]}  Nc6 {[%clk 0:02:15]} 14. Qd2 {[%clk 0:02:01]}  Na5 {[%clk 0:02:06]} 15. Rad1 {[%clk 0:01:47]}  Nxb3 {[%clk 0:02:03]} 16. axb3 {[%clk 0:01:45]}  d6 {[%clk 0:01:50]} 17. Qd4 {[%clk 0:01:40]}  Re8 {[%clk 0:01:46]} 18. f4 {[%clk 0:01:34]}  f6 {[%clk 0:01:44]} 19. b4 {[%clk 0:01:25]}  Kh8 {[%clk 0:01:30]} 20. g3 {[%clk 0:01:21]}  Qd7 {[%clk 0:01:22]} 21. Rfe1 {[%clk 0:01:17]}  Qh3 {[%clk 0:01:05]} 22. Qd3 {[%clk 0:01:17]}  c5 {[%clk 0:00:53]} 23. Qxd6 {[%clk 0:01:04]}  cxb4 {[%clk 0:00:48]} 24. Qxb4 {[%clk 0:01:03]}  Rac8 {[%clk 0:00:39]} 25. Ncd5 {[%clk 0:00:53]}  h5 {[%clk 0:00:35]} 26. Rd2 {[%clk 0:00:49]}  Bxd5 {[%clk 0:00:29]} 27. Rxd5 {[%clk 0:00:31]}  Rc7 {[%clk 0:00:24]} 28. Qd4 {[%clk 0:00:27]}  Rce7 {[%clk 0:00:24]} 29. Nf5 {[%clk 0:00:25]}  Re6 {[%clk 0:00:21]} 30. Rd7 {[%clk 0:00:21]}  h4 {[%clk 0:00:16]} 31. Qd3 {[%clk 0:00:20]}  Rg8 {[%clk 0:00:13]} 32. Qf3 {[%clk 0:00:18]}  hxg3 {[%clk 0:00:12]} 33. hxg3 {[%clk 0:00:18]}  Rc8 {[%clk 0:00:04]} 34. Re2 {[%clk 0:00:19]}  Nf8 {[%clk 0:00:02]} 35. Rxg7 {[%clk 0:00:18]}  Rd8 {[%clk 0:00:01]} 36. Rh2 {[%clk 0:00:18]}  Rd1+ {[%clk 0:00:02]} 37. Qxd1 {[%clk 0:00:19]} 1-0


[Site "https://www.chess.com"]

[Event "Titled Tuesday Blitz February 21 Early 2023"]
[White "Zemlyanskii, Ivan"]
[Black "Tabatabaei, M. Amin"]
[WhiteFideId "24249971"]
[BlackFideId "12521213"]
[WhiteElo "2300"]
[BlackElo "2677"]
[Result "1-0"]
[Round "04"]
[TimeControl "180+2"]
[Date "2023.02.21"]
[WhiteClock "0:00:10"]
[BlackClock "0:00:08"]

1. d4 {[%clk 0:03:00]}  e6 {[%clk 0:03:00]} 2. c4 {[%clk 0:02:59]}  b6 {[%clk 0:02:59]} 3. e4 {[%clk 0:02:58]}  Bb7 {[%clk 0:02:59]} 4. Bd3 {[%clk 0:02:58]}  Nc6 {[%clk 0:02:59]} 5. Ne2 {[%clk 0:02:54]}  g6 {[%clk 0:02:59]} 6. Nbc3 {[%clk 0:02:53]}  Bg7 {[%clk 0:02:59]} 7. Be3 {[%clk 0:02:47]}  Nge7 {[%clk 0:02:59]} 8. O-O {[%clk 0:02:42]}  O-O {[%clk 0:02:59]} 9. d5 {[%clk 0:02:42]}  Ne5 {[%clk 0:02:58]} 10. h3 {[%clk 0:02:40]}  f5 {[%clk 0:02:46]} 11. Bd4 {[%clk 0:02:09]}  Nxd3 {[%clk 0:02:24]} 12. Qxd3 {[%clk 0:01:49]}  e5 {[%clk 0:02:25]} 13. Be3 {[%clk 0:01:43]}  f4 {[%clk 0:02:25]} 14. Bd2 {[%clk 0:01:43]}  f3 {[%clk 0:02:20]} 15. gxf3 {[%clk 0:01:39]}  d6 {[%clk 0:02:20]} 16. f4 {[%clk 0:01:26]}  Qd7 {[%clk 0:02:20]} 17. fxe5 {[%clk 0:01:25]}  dxe5 {[%clk 0:02:19]} 18. f4 {[%clk 0:01:20]}  exf4 {[%clk 0:01:58]} 19. Nxf4 {[%clk 0:01:21]}  Rf6 {[%clk 0:01:16]} 20. Qg3 {[%clk 0:01:15]}  Raf8 {[%clk 0:01:11]} 21. Qg2 {[%clk 0:00:53]}  Qd6 {[%clk 0:01:10]} 22. Ne6 {[%clk 0:00:51]}  Rxf1+ {[%clk 0:00:57]} 23. Rxf1 {[%clk 0:00:52]}  Rxf1+ {[%clk 0:00:57]} 24. Qxf1 {[%clk 0:00:46]}  Bc8 {[%clk 0:00:58]} 25. Nxg7 {[%clk 0:00:39]}  Kxg7 {[%clk 0:00:56]} 26. Bf4 {[%clk 0:00:39]}  Qf6 {[%clk 0:00:45]} 27. Bh6+ {[%clk 0:00:36]}  Kf7 {[%clk 0:00:46]} 28. Qxf6+ {[%clk 0:00:34]}  Kxf6 {[%clk 0:00:47]} 29. Bf4 {[%clk 0:00:35]}  c6 {[%clk 0:00:39]} 30. Kg2 {[%clk 0:00:35]}  cxd5 {[%clk 0:00:37]} 31. cxd5 {[%clk 0:00:35]}  g5 {[%clk 0:00:37]} 32. Bd6 {[%clk 0:00:33]}  Ng6 {[%clk 0:00:37]} 33. Nb5 {[%clk 0:00:29]}  a6 {[%clk 0:00:36]} 34. Na7 {[%clk 0:00:17]}  Bd7 {[%clk 0:00:35]} 35. Nc6 {[%clk 0:00:18]}  h5 {[%clk 0:00:33]} 36. e5+ {[%clk 0:00:15]}  Kf5 {[%clk 0:00:34]} 37. Nd4+ {[%clk 0:00:12]}  Ke4 {[%clk 0:00:34]} 38. e6 {[%clk 0:00:12]}  Be8 {[%clk 0:00:35]} 39. Nf3 {[%clk 0:00:05]}  Kxd5 {[%clk 0:00:35]} 40. Bc7 {[%clk 0:00:06]}  g4 {[%clk 0:00:33]} 41. hxg4 {[%clk 0:00:07]}  hxg4 {[%clk 0:00:34]} 42. Ng5 {[%clk 0:00:07]}  b5 {[%clk 0:00:27]} 43. Kg3 {[%clk 0:00:08]}  Nf8 {[%clk 0:00:17]} 44. e7 {[%clk 0:00:06]}  Ng6 {[%clk 0:00:17]} 45. Bd8 {[%clk 0:00:07]}  Bd7 {[%clk 0:00:17]} 46. Nh7 {[%clk 0:00:05]}  Bc6 {[%clk 0:00:05]} 47. Nf6+ {[%clk 0:00:04]}  Kd4 {[%clk 0:00:06]} 48. e8=Q {[%clk 0:00:04]}  Bxe8 {[%clk 0:00:06]} 49. Nxe8 {[%clk 0:00:05]}  Kd3 {[%clk 0:00:07]} 50. Bf6 {[%clk 0:00:05]}  Kc2 {[%clk 0:00:07]} 51. Nc7 {[%clk 0:00:06]}  b4 {[%clk 0:00:06]} 52. Nxa6 {[%clk 0:00:06]}  b3 {[%clk 0:00:06]} 53. Nb4+ {[%clk 0:00:05]}  Kd2 {[%clk 0:00:05]} 54. axb3 {[%clk 0:00:06]}  Nf8 {[%clk 0:00:05]} 55. Nd5 {[%clk 0:00:06]}  Kd3 {[%clk 0:00:04]} 56. b4 {[%clk 0:00:07]}  Kc4 {[%clk 0:00:05]} 57. Ne3+ {[%clk 0:00:06]}  Kb5 {[%clk 0:00:04]} 58. Bc3 {[%clk 0:00:06]}  Nd7 {[%clk 0:00:04]} 59. Kxg4 {[%clk 0:00:07]}  Nb6 {[%clk 0:00:05]} 60. Kf4 {[%clk 0:00:07]}  Ka4 {[%clk 0:00:05]} 61. Ke4 {[%clk 0:00:08]}  Kb3 {[%clk 0:00:06]} 62. Kd4 {[%clk 0:00:08]}  Na4 {[%clk 0:00:07]} 63. Kd5 {[%clk 0:00:08]}  Nb6+ {[%clk 0:00:06]} 64. Kc6 {[%clk 0:00:09]}  Na4 {[%clk 0:00:07]} 65. b5 {[%clk 0:00:09]}  Ka2 {[%clk 0:00:08]} 66. b6 {[%clk 0:00:10]} 1-0


[Site "https://www.chess.com"]

[Event "Titled Tuesday Blitz February 21 Early 2023"]
[White "Kukhmazov, Arsen"]
[Black "Makarian, Rudik"]
[WhiteFideId "24108260"]
[BlackFideId "44105681"]
[WhiteElo "2512"]
[BlackElo "2545"]
[Result "0-1"]
[Round "04"]
[TimeControl "180+2"]
[Date "2023.02.21"]
[WhiteClock "0:00:08"]
[BlackClock "0:00:09"]

1. d4 {[%clk 0:03:00]}  Nf6 {[%clk 0:02:58]} 2. c4 {[%clk 0:03:00]}  d6 {[%clk 0:02:51]} 3. Nc3 {[%clk 0:02:52]}  Nbd7 {[%clk 0:02:50]} 4. g3 {[%clk 0:02:43]}  e5 {[%clk 0:02:48]} 5. Nf3 {[%clk 0:02:43]}  Be7 {[%clk 0:02:48]} 6. Bg2 {[%clk 0:02:43]}  O-O {[%clk 0:02:49]} 7. O-O {[%clk 0:02:44]}  c6 {[%clk 0:02:50]} 8. e4 {[%clk 0:02:42]}  a6 {[%clk 0:02:47]} 9. a4 {[%clk 0:02:40]}  a5 {[%clk 0:02:48]} 10. h3 {[%clk 0:02:37]}  Re8 {[%clk 0:02:48]} 11. Be3 {[%clk 0:02:37]}  Bf8 {[%clk 0:02:48]} 12. Qc2 {[%clk 0:02:26]}  Qc7 {[%clk 0:02:48]} 13. Rfd1 {[%clk 0:02:21]}  exd4 {[%clk 0:02:42]} 14. Nxd4 {[%clk 0:02:22]}  Nc5 {[%clk 0:02:41]} 15. Re1 {[%clk 0:02:01]}  g6 {[%clk 0:02:27]} 16. Rad1 {[%clk 0:01:59]}  Bg7 {[%clk 0:02:28]} 17. Ndb5 {[%clk 0:01:57]}  cxb5 {[%clk 0:02:23]} 18. Nxb5 {[%clk 0:01:58]}  Qe7 {[%clk 0:01:59]} 19. Nxd6 {[%clk 0:01:58]}  Nfd7 {[%clk 0:01:34]} 20. Nxe8 {[%clk 0:01:50]}  Qxe8 {[%clk 0:01:35]} 21. f4 {[%clk 0:01:51]}  Na6 {[%clk 0:01:25]} 22. e5 {[%clk 0:01:50]}  Ndc5 {[%clk 0:01:25]} 23. Qf2 {[%clk 0:01:36]}  Bf8 {[%clk 0:01:22]} 24. Rd5 {[%clk 0:01:21]}  Qe7 {[%clk 0:00:54]} 25. Red1 {[%clk 0:00:55]}  Be6 {[%clk 0:00:54]} 26. Rd6 {[%clk 0:00:49]}  Qc7 {[%clk 0:00:50]} 27. g4 {[%clk 0:00:17]}  Bxc4 {[%clk 0:00:42]} 28. Rc1 {[%clk 0:00:12]}  Nb3 {[%clk 0:00:23]} 29. Rc3 {[%clk 0:00:13]}  Bxd6 {[%clk 0:00:18]} 30. exd6 {[%clk 0:00:13]}  Qxd6 {[%clk 0:00:18]} 31. Rxc4 {[%clk 0:00:13]}  Re8 {[%clk 0:00:19]} 32. Re4 {[%clk 0:00:09]}  Rxe4 {[%clk 0:00:16]} 33. Bxe4 {[%clk 0:00:10]}  Nac5 {[%clk 0:00:16]} 34. Bf3 {[%clk 0:00:09]}  b6 {[%clk 0:00:14]} 35. f5 {[%clk 0:00:08]}  Qe5 {[%clk 0:00:13]} 36. fxg6 {[%clk 0:00:07]}  hxg6 {[%clk 0:00:14]} 37. h4 {[%clk 0:00:07]}  Nd3 {[%clk 0:00:13]} 38. Qe2 {[%clk 0:00:07]}  Nf4 {[%clk 0:00:12]} 39. Bxf4 {[%clk 0:00:04]}  Qxf4 {[%clk 0:00:13]} 40. h5 {[%clk 0:00:05]}  Nd4 {[%clk 0:00:13]} 41. Qe8+ {[%clk 0:00:05]}  Kg7 {[%clk 0:00:13]} 42. Bg2 {[%clk 0:00:04]}  Qxg4 {[%clk 0:00:12]} 43. h6+ {[%clk 0:00:05]}  Kxh6 {[%clk 0:00:10]} 44. Qxf7 {[%clk 0:00:05]}  Ne2+ {[%clk 0:00:10]} 45. Kf2 {[%clk 0:00:05]}  Nf4 {[%clk 0:00:11]} 46. Qf8+ {[%clk 0:00:05]}  Kg5 {[%clk 0:00:10]} 47. Qe7+ {[%clk 0:00:05]}  Kh6 {[%clk 0:00:09]} 48. Qf8+ {[%clk 0:00:05]}  Kh5 {[%clk 0:00:09]} 49. Qh8+ {[%clk 0:00:05]}  Kg5 {[%clk 0:00:10]} 50. Qd8+ {[%clk 0:00:06]}  Kf5 {[%clk 0:00:09]} 51. Qd7+ {[%clk 0:00:02]}  Ne6 {[%clk 0:00:09]} 52. Qd5+ {[%clk 0:00:03]}  Kf6 {[%clk 0:00:09]} 53. b3 {[%clk 0:00:03]}  Qd4+ {[%clk 0:00:09]} 54. Kg3 {[%clk 0:00:03]}  Qxd5 {[%clk 0:00:08]} 55. Bxd5 {[%clk 0:00:04]}  Ke5 {[%clk 0:00:09]} 56. Bc4 {[%clk 0:00:04]}  Nc5 {[%clk 0:00:08]} 57. Kg4 {[%clk 0:00:04]}  Kd4 {[%clk 0:00:09]} 58. Bf7 {[%clk 0:00:05]}  Kc3 {[%clk 0:00:09]} 59. Bxg6 {[%clk 0:00:05]}  Kxb3 {[%clk 0:00:09]} 60. Be8 {[%clk 0:00:06]}  Nxa4 {[%clk 0:00:09]} 61. Kf3 {[%clk 0:00:07]}  Nc3 {[%clk 0:00:09]} 62. Ke3 {[%clk 0:00:08]}  b5 {[%clk 0:00:09]} 0-1


[Site "https://www.chess.com"]

[Event "Titled Tuesday Blitz February 21 Early 2023"]
[White "Horvath, Dominik"]
[Black "Mitrabha, Guha"]
[WhiteFideId "1642561"]
[BlackFideId "5057000"]
[WhiteElo "2523"]
[BlackElo "2507"]
[Result "0-1"]
[Round "04"]
[TimeControl "180+2"]
[Date "2023.02.21"]
[WhiteClock "0:00:05"]
[BlackClock "0:00:32"]

1. e4 {[%clk 0:03:00]}  c6 {[%clk 0:02:50]} 2. Nf3 {[%clk 0:02:59]}  d5 {[%clk 0:02:51]} 3. exd5 {[%clk 0:03:00]}  cxd5 {[%clk 0:02:51]} 4. d4 {[%clk 0:03:00]}  Nc6 {[%clk 0:02:52]} 5. c3 {[%clk 0:03:00]}  Bg4 {[%clk 0:02:52]} 6. h3 {[%clk 0:03:00]}  Bh5 {[%clk 0:02:52]} 7. Qb3 {[%clk 0:03:00]}  Qd7 {[%clk 0:02:48]} 8. Ne5 {[%clk 0:02:59]}  Nxe5 {[%clk 0:02:46]} 9. dxe5 {[%clk 0:02:59]}  a6 {[%clk 0:02:46]} 10. c4 {[%clk 0:02:54]}  Rc8 {[%clk 0:02:44]} 11. Nc3 {[%clk 0:02:53]}  d4 {[%clk 0:02:31]} 12. Nd5 {[%clk 0:02:41]}  Qc6 {[%clk 0:02:18]} 13. g4 {[%clk 0:02:17]}  Bg6 {[%clk 0:02:08]} 14. Bg2 {[%clk 0:02:17]}  Qxc4 {[%clk 0:02:05]} 15. Qxb7 {[%clk 0:01:51]}  e6 {[%clk 0:02:03]} 16. Bd2 {[%clk 0:00:39]}  exd5 {[%clk 0:01:22]} 17. Rc1 {[%clk 0:00:38]}  Bc2 {[%clk 0:01:17]} 18. Bxd5 {[%clk 0:00:34]}  Qc7 {[%clk 0:01:05]} 19. Qxc7 {[%clk 0:00:19]}  Rxc7 {[%clk 0:01:05]} 20. O-O {[%clk 0:00:09]}  d3 {[%clk 0:00:57]} 21. Be4 {[%clk 0:00:10]}  Bc5 {[%clk 0:00:36]} 22. Rfe1 {[%clk 0:00:08]}  Ne7 {[%clk 0:00:35]} 23. Ba5 {[%clk 0:00:07]}  Rd7 {[%clk 0:00:34]} 24. Bd2 {[%clk 0:00:05]}  O-O {[%clk 0:00:34]} 25. Kg2 {[%clk 0:00:05]}  Bd4 {[%clk 0:00:34]} 26. b3 {[%clk 0:00:05]}  Bb2 {[%clk 0:00:32]} 0-1


[Site "https://www.chess.com"]

[Event "Titled Tuesday Blitz February 21 Early 2023"]
[White "Paravyan, David"]
[Black "Milikow, Yoav"]
[WhiteFideId "4194985"]
[BlackFideId "2822237"]
[WhiteElo "2601"]
[BlackElo "2394"]
[Result "0-1"]
[Round "04"]
[TimeControl "180+2"]
[Date "2023.02.21"]
[WhiteClock "0:00:03"]
[BlackClock "0:00:13"]

1. e4 {[%clk 0:03:00]}  e5 {[%clk 0:02:59]} 2. Nf3 {[%clk 0:03:00]}  Nf6 {[%clk 0:02:59]} 3. Nxe5 {[%clk 0:02:58]}  d6 {[%clk 0:03:00]} 4. Nf3 {[%clk 0:02:58]}  Nxe4 {[%clk 0:03:00]} 5. d4 {[%clk 0:02:59]}  d5 {[%clk 0:03:00]} 6. Bd3 {[%clk 0:02:59]}  Bd6 {[%clk 0:03:00]} 7. O-O {[%clk 0:02:59]}  O-O {[%clk 0:03:00]} 8. c4 {[%clk 0:03:00]}  c6 {[%clk 0:03:00]} 9. Nc3 {[%clk 0:03:01]}  Nxc3 {[%clk 0:02:59]} 10. bxc3 {[%clk 0:03:02]}  dxc4 {[%clk 0:02:52]} 11. Bxc4 {[%clk 0:03:02]}  Bf5 {[%clk 0:02:51]} 12. Bg5 {[%clk 0:03:01]}  Qa5 {[%clk 0:02:51]} 13. Nh4 {[%clk 0:03:01]}  Be6 {[%clk 0:02:50]} 14. Bxe6 {[%clk 0:03:02]}  Qxg5 {[%clk 0:02:51]} 15. Nf3 {[%clk 0:03:02]}  Qf6 {[%clk 0:02:47]} 16. Bb3 {[%clk 0:02:54]}  Nd7 {[%clk 0:02:47]} 17. g3 {[%clk 0:02:50]}  Rfe8 {[%clk 0:02:45]} 18. Kg2 {[%clk 0:02:49]}  g6 {[%clk 0:02:41]} 19. h4 {[%clk 0:02:48]}  h6 {[%clk 0:02:36]} 20. Qd2 {[%clk 0:02:45]}  Kg7 {[%clk 0:02:35]} 21. Rae1 {[%clk 0:02:44]}  b5 {[%clk 0:02:31]} 22. Re3 {[%clk 0:02:31]}  Rxe3 {[%clk 0:02:19]} 23. fxe3 {[%clk 0:02:32]}  Qe7 {[%clk 0:02:19]} 24. h5 {[%clk 0:01:12]}  Nf6 {[%clk 0:02:03]} 25. hxg6 {[%clk 0:01:07]}  Ne4 {[%clk 0:01:50]} 26. Qd3 {[%clk 0:01:03]}  Nxg3 {[%clk 0:01:49]} 27. Re1 {[%clk 0:00:36]}  fxg6 {[%clk 0:01:44]} 28. Bc2 {[%clk 0:00:35]}  Nf5 {[%clk 0:01:39]} 29. e4 {[%clk 0:00:26]}  Nh4+ {[%clk 0:01:37]} 30. Nxh4 {[%clk 0:00:25]}  Qxh4 {[%clk 0:01:38]} 31. e5 {[%clk 0:00:23]}  Qg5+ {[%clk 0:01:26]} 32. Kh2 {[%clk 0:00:16]}  Bc7 {[%clk 0:01:06]} 33. Rg1 {[%clk 0:00:16]}  Qh4+ {[%clk 0:00:59]} 34. Kg2 {[%clk 0:00:16]}  Qg4+ {[%clk 0:00:55]} 35. Kh2 {[%clk 0:00:16]}  Qh5+ {[%clk 0:00:55]} 36. Qh3 {[%clk 0:00:11]}  Qxh3+ {[%clk 0:00:55]} 37. Kxh3 {[%clk 0:00:11]}  g5 {[%clk 0:00:55]} 38. Be4 {[%clk 0:00:12]}  Rd8 {[%clk 0:00:47]} 39. Bxc6 {[%clk 0:00:08]}  b4 {[%clk 0:00:45]} 40. e6 {[%clk 0:00:08]}  Kf6 {[%clk 0:00:43]} 41. d5 {[%clk 0:00:08]}  bxc3 {[%clk 0:00:41]} 42. Rf1+ {[%clk 0:00:09]}  Bf4 {[%clk 0:00:41]} 43. Rf2 {[%clk 0:00:05]}  Ke7 {[%clk 0:00:37]} 44. Kg4 {[%clk 0:00:04]}  Rf8 {[%clk 0:00:33]} 45. Ba4 {[%clk 0:00:03]}  Rb8 {[%clk 0:00:23]} 46. Bb3 {[%clk 0:00:02]}  Rb4 {[%clk 0:00:19]} 47. Kh5 {[%clk 0:00:03]}  a5 {[%clk 0:00:19]} 48. Kg6 {[%clk 0:00:02]}  a4 {[%clk 0:00:19]} 49. Bc2 {[%clk 0:00:02]}  Rb2 {[%clk 0:00:18]} 50. a3 {[%clk 0:00:02]}  Ra2 {[%clk 0:00:18]} 51. Kf5 {[%clk 0:00:02]}  Rxa3 {[%clk 0:00:17]} 52. Bd3 {[%clk 0:00:02]}  Rb3 {[%clk 0:00:17]} 53. Ra2 {[%clk 0:00:02]}  a3 {[%clk 0:00:16]} 54. Bc4 {[%clk 0:00:03]}  Rb4 {[%clk 0:00:16]} 55. Bd3 {[%clk 0:00:03]}  Bd6 {[%clk 0:00:16]} 56. Kg6 {[%clk 0:00:03]}  Rb2 {[%clk 0:00:14]} 57. Ra1 {[%clk 0:00:03]}  c2 {[%clk 0:00:14]} 58. Rf1 {[%clk 0:00:03]}  Bf4 {[%clk 0:00:14]} 59. Bxc2 {[%clk 0:00:01]}  Rxc2 {[%clk 0:00:14]} 60. Rb1 {[%clk 0:00:02]}  Rb2 {[%clk 0:00:13]} 61. Rd1 {[%clk 0:00:02]}  a2 {[%clk 0:00:13]} 62. Rc1 {[%clk 0:00:03]}  Bxc1 {[%clk 0:00:13]} 0-1


[Site "https://www.chess.com"]